bitfinex-derivatives/quotes_SOLF0:USTF0_20241215
["timestamp","ask_amount","ask_price","bid_price","bid_amount"]
[1734281139563,2.12,221.92,221.89,8.40204947]
[1734281139870,2.12,221.92,221.89,6.14784947]
[1734281140465,2.12,221.92,221.91,6.14784947]
[1734281141168,2.12,221.92,221.91,8.40194947]
[1734281142264,2.2534,221.98,221.92,2.254]
[1734281142470,2.12,221.97,221.94,6.14784947]
[1734281143467,2.2534,221.98,221.94,6.14784947]
[1734281143770,2.14,221.97,221.94,6.14784947]
[1734281144166,2.14,221.97,221.92,8.40184947]
[1734281146271,2.14,221.97,221.92,6.14784947]
[1734281146470,2.14,221.97,221.93,2.2539]
[1734281147169,2.14,221.97,221.94,2.2538]
[1734281147772,2.14,221.97,221.94,6.14784947]
[1734281147969,2.2531,222.01,221.96,6.14784947]
[1734281148170,2.14,222.0,221.96,6.14784947]
[1734281148770,2.14,222.0,221.95,2.2536]
[1734281148973,2.2531,222.01,221.95,2.2536]
[1734281149173,2.14,221.99,221.95,2.2536]
[1734281149773,2.14,221.99,221.94,6.14784947]
[1734281150482,2.14,221.99,221.94,8.40164947]
[1734281151578,4.3933,221.99,221.94,8.40164947]
[1734281152375,4.3933,221.99,221.88,6.14784947]
[1734281152376,6.14784947,221.96,221.88,6.14784947]
[1734281152577,6.14784947,221.94,221.88,6.14784947]
[1734281152880,2.14,221.93,221.88,6.14784947]
[1734281154277,2.14,221.93,221.89,2.2542]
[1734281156280,4.394,221.93,221.88,6.14784947]
[1734281156583,2.14,221.93,221.88,6.14784947]
[1734281156781,2.14,221.93,221.87,2.2545]
[1734281156981,2.254,221.92,221.86,8.40244947]
[1734281157686,4.3939,221.93,221.88,6.14784947]
[1734281158489,4.3939,221.93,221.88,8.40224947]
[1734281159590,4.3939,221.93,221.88,6.14784947]
[1734281159790,2.2541,221.92,221.88,6.14784947]
[1734281159987,2.2541,221.92,221.86,6.14784947]
[1734281160192,6.14784947,221.92,221.86,8.40244947]
[1734281160387,2.2542,221.91,221.86,6.14784947]
[1734281160686,4.5049,222.08,221.9,6.14784947]
[1734281160687,2.14,221.96,221.9,6.14784947]
[1734281160882,4.5049,222.08,221.85,5.356579]
[1734281160883,2.14,221.95,221.92,6.14784947]
[1734281161083,2.14,221.94,221.92,6.14784947]
[1734281161791,2.14,221.93,221.92,6.14784947]
[1734281162488,2.14,221.93,221.92,8.40184947]
[1734281162693,2.2535,221.98,221.92,8.40184947]
[1734281162894,2.14,221.97,221.92,8.40184947]
[1734281163688,4.3936,221.97,221.92,8.40184947]
[1734281167794,2.14,221.97,221.92,6.14784947]
[1734281167995,2.14,221.97,221.93,2.2539]
[1734281169696,2.14,221.97,221.9,6.14784947]
[1734281170387,2.2538,221.95,221.9,8.40204947]
[1734281170787,2.14,221.97,221.9,6.14784947]
[1734281170987,8.28784947,221.97,221.92,2.254]
[1734281171398,8.28784947,221.97,221.86,2.9425]
[1734281171591,8.28784947,221.97,221.9,2.2541]
[1734281172194,10.54144947,221.97,221.9,2.2541]
[1734281172390,8.28784947,221.97,221.9,6.14784947]
[1734281173489,2.2536,221.96,221.9,8.40204947]
[1734281173693,2.2536,221.96,221.91,5.08178683]
[1734281174198,2.12,221.97,221.94,6.14784947]
[1734281174499,5.36414614,222.1,221.96,6.14784947]
[1734281174698,2.2529,222.04,221.98,6.14784947]
[1734281175098,2.12,222.03,221.98,6.14784947]
[1734281175495,2.12,222.02,221.99,2.2533]
[1734281176198,2.12,222.02,221.98,6.14784947]
[1734281176398,2.12,222.01,221.98,8.40124947]
[1734281176600,2.12,222.01,221.98,6.14784947]
[1734281176799,2.12,222.01,222.0,6.14784947]
[1734281177002,2.12,222.01,222.0,8.40104947]
[1734281177199,2.12,222.01,222.0,6.14784947]
[1734281177900,2.12,222.01,222.0,8.40104947]
[1734281178299,6.14784947,222.09,222.0,6.14784947]
[1734281178495,1.4434,222.12,222.03,6.14784947]
[1734281178696,2.12,222.11,222.05,6.14784947]
[1734281178896,7.59124947,222.12,222.05,6.14784947]
[1734281179100,2.12,222.1,222.05,8.40054947]
[1734281180600,2.12,222.1,221.96,2.9361]
[1734281180804,2.2524,222.09,222.03,6.14784947]
[1734281182405,2.2524,222.09,222.03,8.40074947]
[1734281183799,2.12,222.08,222.05,8.40054947]
[1734281184505,2.12,222.08,221.99,5.35007103]
[1734281184700,2.12,222.08,222.03,6.14784947]
[1734281185607,4.3724,222.08,222.03,8.40074947]
[1734281185809,2.12,222.08,222.03,8.40074947]
[1734281186008,2.12,222.08,222.05,2.2527]
[1734281186409,2.12,222.08,222.07,6.14784947]
[1734281186607,2.12,222.08,222.07,8.40034947]
[1734281186909,2.12,222.09,222.07,6.14784947]
[1734281187105,2.12,222.09,222.08,2.2524]
[1734281187309,2.12,222.09,222.07,6.14784947]
[1734281187310,53.88,222.14,222.07,6.14784947]
[1734281187508,2.12,222.13,222.09,6.14784947]
[1734281188513,2.12,222.13,222.09,8.40004947]
[1734281189412,2.12,222.13,222.1,2.2521]
[1734281190909,2.12,222.13,222.08,2.2523]
[1734281191908,2.12,222.13,222.09,8.40014947]
[1734281192508,2.2516,222.16,222.09,6.14784947]
[1734281192711,2.12,222.15,222.11,6.14784947]
[1734281192913,2.12,222.14,222.11,6.14784947]
[1734281193112,2.12,222.13,222.11,6.14784947]
[1734281193407,2.12,222.13,222.11,8.39994947]
[1734281194820,2.12,222.13,222.09,6.14784947]
[1734281196522,2.12,222.13,222.1,2.2521]
[1734281197111,2.12,222.13,222.11,6.14784947]
[1734281197312,53.88,222.27,222.11,6.14784947]
[1734281197520,6.14784947,222.24,222.16,6.14784947]
[1734281197715,2.2509,222.23,222.17,2.2515]
[1734281198221,2.2509,222.23,222.16,6.14784947]
[1734281198222,8.39884947,222.22,222.16,6.14784947]
[1734281198526,2.12,222.21,222.16,6.14784947]
[1734281198714,2.12,222.21,222.17,2.2515]
[1734281199220,2.2509,222.23,222.17,2.2515]
[1734281199421,2.12,222.22,222.17,2.2515]
[1734281199623,2.12,222.22,222.18,6.14784947]
[1734281199819,2.12,222.22,222.18,8.39924947]
[1734281200321,2.12,222.22,222.18,6.14784947]
[1734281201326,53.88,222.27,222.2,6.14784947]
[1734281201522,2.12,222.26,222.2,6.14784947]
[1734281202422,2.12,222.26,222.2,8.39904947]
[1734281202728,2.12,222.26,222.2,6.14784947]
[1734281203222,8.26784947,222.26,222.2,6.14784947]
[1734281204026,2.2508,222.24,222.2,6.14784947]
[1734281204520,8.26784947,222.26,222.2,6.14784947]
[1734281204726,2.251,222.23,222.2,6.14784947]
[1734281205227,2.251,222.23,222.18,6.14784947]
[1734281205922,6.14784947,222.24,222.17,5.27210078]
[1734281205923,2.251,222.22,222.17,5.27210078]
[1734281206128,2.12,222.21,222.17,11.41995025]
[1734281207328,2.12,222.21,222.17,13.67145025]
[1734281208028,2.12,222.21,222.19,6.14784947]
[1734281208631,2.12,222.21,222.2,2.2512]
[1734281210925,2.12,222.24,222.22,2.251]
[1734281211128,2.12,222.24,222.23,6.14784947]
[1734281211528,2.2506,222.27,222.23,6.14784947]
[1734281211833,2.12,222.26,222.21,6.14784947]
[1734281212032,2.12,222.25,222.21,6.14784947]
[1734281213534,2.12,222.25,222.23,6.14784947]
[1734281215629,2.12,222.25,222.21,6.14784947]
[1734281216427,4.3708,222.25,222.21,6.14784947]
[1734281221039,2.2509,222.24,222.19,6.14784947]
[1734281221237,2.12,222.25,222.19,6.14784947]
[1734281222929,2.2509,222.24,222.19,6.14784947]
[1734281223526,2.12,222.25,222.19,6.14784947]
[1734281223932,8.26784947,222.25,222.17,5.27210078]
[1734281224137,8.26784947,222.25,222.17,11.41995025]
[1734281224733,6.14784947,222.23,222.17,11.41995025]
[1734281224936,2.2511,222.22,222.17,11.41995025]
[1734281225137,6.14784947,222.23,222.17,11.41995025]
[1734281226439,2.2511,222.21,222.17,11.41995025]
[1734281226639,2.12,222.2,222.17,11.41995025]
[1734281228139,2.12,222.2,222.13,3.6518]
[1734281228344,2.12,222.2,222.14,6.14784947]
[1734281228740,2.12,222.2,222.13,1.3999]
[1734281228741,2.2513,222.19,222.16,6.14784947]
[1734281229042,2.12,222.2,222.13,1.3999]
[1734281229342,2.12,222.2,222.15,6.14784947]
[1734281229343,2.2514,222.18,222.15,6.14784947]
[1734281231142,6.14784947,222.25,222.17,6.14784947]
[1734281231443,2.12,222.24,222.19,6.14784947]
[1734281231644,2.12,222.23,222.19,6.14784947]
[1734281233546,4.3709,222.23,222.19,6.14784947]
[1734281235051,2.2509,222.23,222.19,6.14784947]
[1734281235251,2.12,222.22,222.19,6.14784947]
[1734281235452,2.2508,222.25,222.21,6.14784947]
[1734281235654,2.12,222.24,222.21,6.14784947]
[1734281236053,4.3708,222.24,222.21,6.14784947]
[1734281236256,2.12,222.24,222.23,6.14784947]
[1734281236760,2.12,222.24,222.21,6.14784947]
[1734281237160,4.3894,222.32,222.23,6.14784947]
[1734281237354,2.12,222.31,222.25,6.14784947]
[1734281237552,2.12,222.3,222.25,6.14784947]
[1734281237753,2.12,222.29,222.25,6.14784947]
[1734281238056,4.3894,222.32,222.25,6.14784947]
[1734281238250,2.12,222.31,222.25,6.14784947]
[1734281238451,2.12,222.31,222.14,5.3295718]
[1734281238655,2.12,222.31,222.25,6.14784947]
[1734281239559,2.2505,222.27,222.25,6.14784947]
[1734281239759,2.12,222.26,222.25,6.14784947]
[1734281240857,4.3706,222.26,222.23,6.14784947]
[1734281243462,2.2506,222.26,222.23,6.14784947]
[1734281243658,2.2504,222.28,222.25,6.14784947]
[1734281243852,2.12,222.27,222.25,6.14784947]
[1734281244257,2.2504,222.28,222.25,6.14784947]
[1734281244457,2.12,222.27,222.25,6.14784947]
[1734281244659,2.12,222.26,222.25,6.14784947]
[1734281246163,2.12,222.26,222.23,6.14784947]
[1734281247667,2.2504,222.28,222.23,6.14784947]
[1734281247867,2.12,222.27,222.23,6.14784947]
[1734281249666,0.24128,222.35,222.26,6.14784947]
[1734281249864,0.24128,222.35,222.24,2.12]
[1734281249865,0.24128,222.35,222.34,6.14784947]
[1734281256469,0.24128,222.35,222.33,5.5159198]
[1734281256666,0.24128,222.35,222.31,6.14784947]
[1734281257069,0.24128,222.35,222.33,6.14784947]
[1734281257470,2.12,222.39,222.33,6.14784947]
[1734281258173,2.2497,222.35,222.33,6.14784947]
[1734281259272,2.2496,222.37,222.33,6.14784947]
[1734281260668,2.2496,222.36,222.33,6.14784947]
[1734281260872,2.2496,222.36,222.27,2.9451]
[1734281260873,6.14784947,222.36,222.27,2.9451]
[1734281261069,6.14784947,222.36,222.28,6.14784947]
[1734281261674,2.25,222.32,222.28,6.14784947]
[1734281261873,2.12,222.32,222.28,6.14784947]
[1734281262071,2.12,222.32,222.21,5.41815882]
[1734281262072,8.26784947,222.32,222.21,5.41815882]
[1734281262377,8.26784947,222.32,222.25,6.14784947]
[1734281262578,6.14784947,222.3,222.25,6.14784947]
[1734281262869,6.14784947,222.3,222.21,6.94105882]
[1734281263077,2.2504,222.28,222.23,6.14784947]
[1734281263278,2.12,222.27,222.23,6.14784947]
[1734281263578,4.3705,222.27,222.23,6.14784947]
[1734281264673,2.12,222.27,222.23,6.14784947]
[1734281265271,2.12,222.27,222.25,6.14784947]
[1734281265680,4.3705,222.27,222.25,6.14784947]
[1734281265975,2.12,222.27,222.25,6.14784947]
[1734281266177,2.12,222.27,222.23,6.14784947]
[1734281266374,2.2506,222.26,222.23,6.14784947]
[1734281268383,2.2506,222.26,222.25,6.14784947]
[1734281269186,2.12,222.27,222.25,6.14784947]
[1734281269383,6.14784947,222.36,222.25,6.14784947]
[1734281269579,2.12,222.35,222.31,6.14784947]
[1734281269784,1.5438,222.39,222.33,6.14784947]
[1734281270083,2.12,222.38,222.33,6.14784947]
[1734281271379,2.2496,222.36,222.33,6.14784947]
[1734281273683,2.2497,222.36,222.33,6.14784947]
[1734281274986,6.14784947,222.37,222.31,6.14784947]
[1734281275790,6.14784947,222.37,222.29,6.14784947]
[1734281275978,6.14784947,222.35,222.29,6.14784947]
[1734281276488,2.2501,222.31,222.29,6.14784947]
[1734281276688,2.12,222.3,222.27,6.14784947]
[1734281277986,2.12,222.3,222.25,6.14784947]
[1734281278386,4.3703,222.3,222.25,6.14784947]
[1734281279283,2.12,222.3,222.25,6.14784947]
[1734281279580,2.2503,222.29,222.25,6.14784947]
[1734281280781,2.12,222.3,222.25,6.14784947]
[1734281281178,8.26784947,222.3,222.23,6.14784947]
[1734281282485,2.2506,222.27,222.23,6.14784947]
[1734281282987,2.2508,222.24,222.2,6.14784947]
[1734281283187,2.12,222.23,222.2,6.14784947]
[1734281285383,2.12,222.23,222.2,11.4794044]
[1734281285779,4.371,222.23,222.2,6.14784947]
[1734281285983,2.12,222.23,222.2,6.14784947]
[1734281287384,4.3709,222.23,222.2,6.14784947]
[1734281288285,2.12,222.23,222.22,6.14784947]
[1734281292987,2.12,222.23,222.18,5.48779295]
[1734281293289,2.12,222.23,222.2,6.14784947]
[1734281293490,2.12,222.23,222.18,11.63564242]
[1734281293684,8.26784947,222.23,222.16,6.14784947]
[1734281294389,2.2513,222.2,222.16,6.14784947]
[1734281294790,2.2513,222.2,222.16,11.58295793]
[1734281295096,4.371,222.23,222.18,6.14784947]
[1734281295290,4.371,222.23,222.2,6.14784947]
[1734281296389,2.251,222.23,222.2,6.14784947]
[1734281296591,2.12,222.22,222.2,6.14784947]
[1734281297891,2.2506,222.26,222.2,6.14784947]
[1734281298099,6.14784947,222.31,222.24,6.14784947]
[1734281298294,2.12,222.3,222.24,6.14784947]
[1734281298595,2.2505,222.28,222.24,6.14784947]
[1734281299299,2.2505,222.27,222.24,6.14784947]
[1734281299899,2.12,222.26,222.24,6.14784947]
[1734281300097,2.12,222.25,222.24,6.14784947]
[1734281300894,2.12,222.25,222.17,4.4949]
[1734281301195,2.12,222.25,222.22,6.14784947]
[1734281301793,4.3707,222.25,222.22,6.14784947]
[1734281301989,2.12,222.25,222.22,6.14784947]
[1734281302395,2.12,222.25,222.2,6.14784947]
[1734281302697,2.2509,222.24,222.2,6.14784947]
[1734281303091,2.12,222.25,222.2,6.14784947]
[1734281303598,6.14784947,222.23,222.06,1.3987]
[1734281303793,6.14784947,222.21,222.14,6.14784947]
[1734281304103,2.2514,222.18,222.14,6.14784947]
[1734281304995,2.2514,222.18,222.14,11.54482006]
[1734281305495,2.12,222.17,222.14,11.54482006]
[1734281306496,2.12,222.17,222.16,6.14784947]
[1734281306797,2.12,222.19,222.16,6.14784947]
[1734281306997,2.12,222.2,222.19,6.14784947]
[1734281308093,2.12,222.2,222.15,3.0813]
[1734281308305,2.12,222.2,222.18,6.14784947]
[1734281310898,2.12,222.2,222.18,8.39924947]
[1734281315298,1.4942,222.34,222.18,6.14784947]
[1734281315499,6.14784947,222.31,222.24,6.14784947]
[1734281317105,2.2502,222.3,222.24,8.39864947]
[1734281318207,6.14784947,222.31,222.24,6.14784947]
[1734281318208,2.2503,222.29,222.24,6.14784947]
[1734281318701,2.12,222.28,222.24,6.14784947]
[1734281319205,2.12,222.28,222.22,6.14784947]
[1734281319408,2.2505,222.27,222.22,6.14784947]
[1734281319902,2.2507,222.26,222.22,6.14784947]
[1734281320105,2.12,222.28,222.22,6.14784947]
[1734281320307,6.14784947,222.27,222.2,6.14784947]
[1734281320500,2.2507,222.25,222.2,6.14784947]
[1734281320910,6.14784947,222.25,222.18,6.14784947]
[1734281321401,2.2509,222.23,222.18,6.14784947]
[1734281321604,2.12,222.22,222.18,6.14784947]
[1734281322602,2.12,222.22,222.2,8.39894947]
[1734281322809,2.12,222.22,222.2,6.14784947]
[1734281324502,2.12,222.22,222.21,2.2511]
[1734281324707,2.12,222.22,222.2,6.14784947]
[1734281326206,2.12,222.22,222.18,8.39924947]
[1734281326405,2.12,222.22,222.18,6.14784947]
[1734281326812,2.2511,222.21,222.18,6.14784947]
[1734281327011,2.12,222.22,222.18,6.14784947]
[1734281328406,4.371,222.22,222.18,6.14784947]
[1734281329812,2.2511,222.21,222.17,2.2515]
[1734281330115,2.2511,222.21,222.18,6.14784947]
[1734281331016,2.12,222.22,222.18,6.14784947]
[1734281331712,2.12,222.22,222.15,3.0813]
[1734281331912,8.26784947,222.22,222.15,9.22914947]
[1734281332216,2.2514,222.18,222.15,9.22914947]
[1734281332411,2.12,222.17,222.15,9.22914947]
[1734281333218,2.12,222.17,222.15,6.14784947]
[1734281333417,2.12,222.17,222.08,5.1108]
[1734281333418,2.2517,222.15,222.08,5.1108]
[1734281333624,6.14784947,222.14,222.1,5.28181826]
[1734281333813,6.14784947,222.14,222.08,6.14784947]
[1734281334520,2.252,222.12,222.08,6.14784947]
[1734281334719,2.12,222.11,222.08,6.14784947]
[1734281335117,4.3721,222.11,222.08,6.14784947]
[1734281336417,4.3721,222.11,222.06,6.14784947]
[1734281337017,2.12,222.11,222.08,5.37392367]
[1734281337319,2.2522,222.1,222.08,5.37392367]
[1734281338112,2.2522,222.1,221.99,6.4497]
[1734281338113,2.12,222.11,222.04,6.14784947]
[1734281338618,2.12,222.11,222.02,2.2529]
[1734281338619,2.2524,222.08,222.02,2.2529]
[1734281339023,2.2524,222.08,222.04,6.14784947]
[1734281339614,2.2525,222.07,222.04,6.14784947]
[1734281339823,2.12,222.06,222.04,6.14784947]
[1734281340016,2.12,222.06,222.04,11.56282886]
[1734281340726,55.54736528,222.19,222.04,11.56282886]
[1734281341020,6.14784947,222.16,222.08,6.14784947]
[1734281341221,6.14784947,222.14,222.08,6.14784947]
[1734281341425,2.12,222.13,222.08,6.14784947]
[1734281342027,4.3719,222.13,222.08,6.14784947]
[1734281343124,2.12,222.13,222.1,6.14784947]
[1734281343528,6.14784947,222.17,222.12,6.14784947]
[1734281343529,2.2516,222.16,222.12,6.14784947]
[1734281343721,2.12,222.15,222.12,6.14784947]
[1734281344418,2.12,222.15,222.14,6.14784947]
[1734281345220,2.12,222.15,222.12,8.39984947]
[1734281347227,2.12,222.15,222.12,6.14784947]
[1734281348724,2.12,222.15,222.1,6.14784947]
[1734281350530,2.2518,222.14,222.1,6.14784947]
[1734281351127,4.3717,222.15,222.1,6.14784947]
[1734281351329,2.12,222.15,222.1,6.14784947]
[1734281352131,2.12,222.14,222.1,6.14784947]
[1734281352336,2.12,222.14,222.12,6.14784947]
[1734281352545,6.14784947,222.21,222.12,6.14784947]
[1734281352745,2.16,222.2,222.14,6.14784947]
[1734281352933,2.2513,222.19,222.14,6.14784947]
[1734281354636,4.4112,222.2,222.14,8.39964947]
[1734281354838,6.14784947,222.21,222.14,6.14784947]
[1734281355046,2.16,222.19,222.14,6.14784947]
[1734281355244,2.16,222.18,222.14,6.14784947]
[1734281356444,2.16,222.18,222.15,2.2517]
[1734281356645,2.16,222.18,222.14,6.14784947]
[1734281357542,6.14784947,222.17,222.09,6.14784947]
[1734281358246,6.14784947,222.17,222.1,2.2521]
[1734281358247,2.2517,222.16,222.1,2.2521]
[1734281359039,2.2517,222.16,222.11,2.2521]
[1734281359350,2.16,222.15,222.11,6.14784947]
[1734281360048,2.16,222.15,222.12,2.252]
[1734281360951,2.16,222.15,222.11,8.39994947]
[1734281361747,2.2519,222.13,222.08,2.2524]
[1734281361941,2.2519,222.13,222.08,8.40024947]
[1734281362344,2.2519,222.13,222.08,6.14784947]
[1734281362550,6.14784947,222.13,222.08,6.14784947]
[1734281362751,6.14784947,222.13,222.06,6.14784947]
[1734281362953,2.2523,222.09,222.05,5.2257]
[1734281363154,2.16,222.08,222.05,2.973]
[1734281363453,2.16,222.08,222.05,1.4597]
[1734281365248,2.16,222.11,222.07,2.2525]
[1734281365454,2.16,222.11,222.06,6.14784947]
[1734281365858,2.16,222.11,222.06,2.2526]
[1734281366158,2.16,222.11,222.07,6.14784947]
[1734281367447,4.4122,222.11,222.07,6.14784947]
[1734281368455,2.16,222.11,222.07,6.14784947]
[1734281368655,2.16,222.11,222.08,2.2524]
[1734281369365,2.2518,222.15,222.09,6.14784947]
[1734281369555,2.16,222.14,222.11,6.14784947]
[1734281369758,2.16,222.13,222.11,6.14784947]
[1734281370051,2.2515,222.17,222.12,2.252]
[1734281370258,2.16,222.16,222.12,2.252]
[1734281375764,2.16,222.16,222.06,1.4831]
[1734281375965,2.16,222.16,222.1,2.2521]
[1734281375966,8.30784947,222.16,222.1,2.2521]
[1734281377164,8.30784947,222.16,222.11,6.14784947]
[1734281377363,2.16,222.16,222.11,6.14784947]
[1734281378565,2.16,222.16,222.12,2.252]
[1734281380665,8.30784947,222.16,222.1,2.2521]
[1734281381170,8.30784947,222.16,222.09,6.14784947]
[1734281381366,8.30784947,222.16,222.1,5.06114026]
[1734281381566,8.30784947,222.16,222.09,6.14784947]
[1734281382669,10.55944947,222.16,222.11,2.2521]
[1734281385067,8.30784947,222.16,222.09,6.14784947]
[1734281385263,2.2517,222.15,222.1,2.2522]
[1734281385673,6.14784947,222.14,222.1,2.2522]
[1734281385967,8.39994947,222.12,222.07,2.2524]
[1734281386169,6.14784947,222.1,222.05,5.4343118]
[1734281386367,2.12,222.09,222.05,5.4343118]
[1734281387372,2.12,222.09,222.05,7.6869118]
[1734281389376,2.12,222.09,222.04,6.14784947]
[1734281389871,8.26784947,222.09,222.03,6.14784947]
[1734281390076,8.26784947,222.09,222.03,8.40074947]
[1734281390772,6.14784947,222.07,222.02,7.65307742]
[1734281390978,6.14784947,222.07,222.03,5.06715179]
[1734281391180,6.14784947,222.07,222.02,7.65307742]
[1734281392175,2.12,222.09,222.03,6.14784947]
[1734281392481,2.12,222.08,222.07,6.14784947]
[1734281393481,2.12,222.08,222.07,8.40034947]
[1734281395183,2.12,222.09,222.07,8.40034947]
[1734281396381,2.12,222.09,222.07,6.14784947]
[1734281396583,2.12,222.09,222.08,2.2524]
[1734281399880,2.252,222.12,222.08,2.2524]
[1734281400085,2.12,222.11,222.08,2.2524]
[1734281402789,2.12,222.11,222.09,2.2523]
[1734281402994,2.12,222.11,222.1,6.14784947]
[1734281403195,2.12,222.12,222.11,2.252]
[1734281404794,2.12,222.13,222.11,2.252]
[1734281406498,2.12,222.13,222.1,8.40004947]
[1734281407099,2.12,222.13,222.1,2.2522]
[1734281408398,6.14784947,222.14,222.02,5.42206342]
[1734281408599,4.372,222.13,222.08,2.2524]
[1734281409400,2.12,222.13,222.09,6.14784947]
[1734281409795,55.54278322,222.2,222.11,2.252]
[1734281409995,2.2516,222.16,222.11,6.14784947]
[1734281410399,6.14784947,222.18,222.12,2.2519]
[1734281410598,2.2515,222.17,222.12,2.2519]
[1734281410794,6.14784947,222.18,222.11,6.14784947]
[1734281411500,2.2515,222.17,222.11,6.14784947]
[1734281412395,6.14784947,222.18,222.13,2.2519]
[1734281412592,6.14784947,222.18,222.11,6.14784947]
[1734281412898,2.2515,222.17,222.12,2.252]
[1734281413505,6.14784947,222.16,222.12,2.252]
[1734281414102,2.12,222.15,222.14,2.2518]
[1734281414604,8.26784947,222.15,222.04,1.4239]
[1734281414900,6.14784947,222.13,222.06,6.14784947]
[1734281415199,6.14784947,222.13,222.09,2.2523]
[1734281415399,6.14784947,222.11,222.02,5.42206342]
[1734281415598,2.12,222.1,222.03,16.40410086]
[1734281415897,2.12,222.1,222.04,5.07093425]
[1734281416098,2.12,222.1,222.05,5.07093425]
[1734281416298,2.12,222.1,222.03,6.14784947]
[1734281416495,2.12,222.1,222.04,5.0713561]
[1734281416699,2.12,222.1,222.05,5.0713561]
[1734281416896,2.12,222.1,222.03,6.14784947]
[1734281417102,2.12,222.1,222.04,5.07134156]
[1734281417305,2.12,222.1,222.05,5.07134156]
[1734281417606,6.14784947,222.09,222.06,2.2526]
[1734281418502,2.12,222.1,222.03,6.14784947]
[1734281418802,2.12,222.1,222.04,5.07145384]
[1734281419004,2.12,222.1,222.03,6.14784947]
[1734281419206,2.12,222.1,222.06,2.2526]
[1734281420106,2.12,222.1,222.02,5.42206342]
[1734281420107,2.12,222.1,222.05,6.14784947]
[1734281420402,4.311,222.21,222.07,6.14784947]
[1734281420611,6.14784947,222.15,222.09,2.2523]
[1734281420901,2.12,222.14,222.09,2.2523]
[1734281422410,6.14784947,222.13,222.09,2.2523]
[1734281423306,2.12,222.12,222.08,2.2524]
[1734281423506,6.14784947,222.13,222.07,6.14784947]
[1734281423701,2.12,222.12,222.07,6.14784947]
[1734281424399,2.12,222.12,222.09,6.14784947]
[1734281424802,2.2516,222.16,222.09,6.14784947]
[1734281425007,2.12,222.15,222.12,2.2519]
[1734281428409,8.39924947,222.18,222.12,2.2519]
[1734281428711,2.12,222.17,222.12,2.2519]
[1734281430005,5.1342,222.21,222.15,2.2516]
[1734281430205,2.12,222.2,222.15,6.14784947]
[1734281431707,2.12,222.2,222.17,2.2514]
[1734281432109,2.12,222.2,222.19,2.2513]
[1734281433012,2.12,222.2,222.14,6.14784947]
[1734281433709,8.26784947,222.2,222.1,4.4947]
[1734281434013,10.51914947,222.2,222.13,6.14784947]
[1734281434204,8.26784947,222.2,222.13,6.14784947]
[1734281434407,8.26784947,222.2,222.14,2.2517]
[1734281434408,2.2513,222.19,222.14,2.2517]
[1734281434609,6.14784947,222.18,222.14,2.2517]
[1734281436008,6.14784947,222.18,222.13,2.2519]
[1734281436913,8.39924947,222.18,222.13,2.2519]
[1734281439415,6.14784947,222.18,222.03,1.4225]
[1734281439610,6.14784947,222.14,222.08,6.14784947]
[1734281439815,2.12,222.13,222.06,6.14784947]
[1734281440113,6.14784947,222.12,222.07,2.2524]
[1734281441009,6.14784947,222.1,222.05,2.2526]
[1734281441209,6.14784947,222.1,222.03,9.05394947]
[1734281442309,6.14784947,222.1,222.05,2.2526]
[1734281443020,2.2522,222.11,222.06,2.2526]
[1734281444222,8.40004947,222.1,222.03,6.14784947]
[1734281444423,6.14784947,222.1,222.04,5.06693672]
[1734281444614,6.14784947,222.1,222.03,6.14784947]
[1734281444922,6.14784947,222.1,222.04,5.06715024]
[1734281445125,6.14784947,222.1,222.03,6.14784947]
[1734281445320,2.2524,222.08,222.04,7.31985086]
[1734281445524,2.12,222.07,222.03,6.14784947]
[1734281445916,2.12,222.07,222.03,8.40074947]
[1734281446317,2.12,222.07,222.0,6.14784947]
[1734281446615,6.14784947,222.04,222.01,5.06745191]
[1734281446816,6.14784947,222.04,221.97,6.14784947]
[1734281447019,2.253,222.03,221.98,12.5044685]